bitfinex/quotes_BTCUSD_20241119
["timestamp","ask_amount","ask_price","bid_price","bid_amount"]
[1732047168302,0.12053208,93512.0,93508.0,0.074859]
[1732047168525,0.12053208,93512.0,93509.0,0.00282604]
[1732047168739,0.213878,93511.0,93498.0,0.0017094]
[1732047168958,0.106951,93501.0,93498.0,0.0017094]
[1732047169207,0.213878,93511.0,93498.0,0.0017094]
[1732047169208,0.106953,93499.0,93498.0,0.0017094]
[1732047170116,0.21601555,93499.0,93498.0,0.0017094]
[1732047171471,0.93782493,93499.0,93498.0,0.0017094]
[1732047171675,1.06627997,93499.0,93498.0,0.0017094]
[1732047171882,0.01,93490.0,93480.0,0.0001]
[1732047172085,0.106973,93481.0,93480.0,0.0001]
[1732047174437,0.29643,93489.0,93481.0,0.07488]
[1732047174656,0.213931,93488.0,93480.0,0.0001]
[1732047174867,0.106973,93481.0,93480.0,0.0001]
[1732047175911,0.213933,93487.0,93480.0,0.0001]
[1732047176122,0.106972,93483.0,93480.0,0.0001]
[1732047176552,0.106972,93482.0,93480.0,0.0001]
[1732047176754,0.12597042,93489.0,93480.0,0.0001]
[1732047176755,0.213931,93488.0,93480.0,0.0001]
[1732047176960,0.10697,93484.0,93480.0,0.0001]
[1732047177370,0.12597042,93489.0,93480.0,0.0001]
[1732047177576,0.106971,93484.0,93480.0,0.0001]
[1732047177809,0.0825,93489.0,93486.0,0.074877]
[1732047178051,0.0825,93489.0,93480.0,0.0001]
[1732047178052,0.075,93496.0,93480.0,0.0001]
[1732047178262,0.075,93496.0,93482.0,0.07488]
[1732047178263,0.106966,93488.0,93482.0,0.07488]
[1732047178485,0.106966,93488.0,93480.0,0.074981]
[1732047178695,0.10906255,93495.0,93488.0,0.074875]
[1732047178908,0.10906255,93494.0,93486.0,0.074877]
[1732047179081,0.10906255,93494.0,93484.0,0.074878]
[1732047179326,0.10906255,93494.0,93482.0,0.07488]
[1732047179327,0.213922,93492.0,93482.0,0.07488]
[1732047179543,0.106965,93489.0,93481.0,0.074881]
[1732047180438,0.106963,93490.0,93482.0,0.07488]
[1732047180676,0.10906255,93494.0,93485.0,0.074877]
[1732047180898,0.106961,93492.0,93485.0,0.074877]
[1732047181115,0.106961,93492.0,93483.0,0.074879]
[1732047181336,0.106961,93492.0,93485.0,0.074878]
[1732047181580,0.04304956,93496.0,93480.0,0.0001]
[1732047181804,0.106957,93495.0,93487.0,0.074876]
[1732047182022,0.106956,93497.0,93489.0,0.074875]
[1732047182243,0.36926955,93499.0,93489.0,0.074875]
[1732047182486,0.106954,93498.0,93489.0,0.074875]
[1732047182721,0.09074256,93499.0,93492.0,0.074872]
[1732047182964,0.09074256,93499.0,93480.0,0.0001]
[1732047182965,0.04444256,93499.0,93493.0,0.074871]
[1732047183202,0.04444256,93499.0,93482.0,0.07488]
[1732047183431,0.10695,93501.0,93482.0,0.07488]
[1732047183671,0.60344508,93503.0,93493.0,0.074871]
[1732047183912,0.106953,93499.0,93481.0,0.074881]
[1732047184130,0.106953,93499.0,93489.0,0.074874]
[1732047184350,0.106953,93499.0,93490.0,0.074873]
[1732047184588,0.106953,93499.0,93489.0,0.074874]
[1732047184812,0.213901,93501.0,93489.0,0.074874]
[1732047185039,0.1534357,93503.0,93490.0,0.074874]
[1732047185040,0.106952,93500.0,93490.0,0.074874]
[1732047185260,0.106952,93500.0,93490.0,0.07778878]
[1732047185544,8e-07,93512.0,93491.0,0.0776]
[1732047185763,8e-07,93512.0,93509.0,0.074858]
[1732047185983,8e-07,93512.0,93511.0,0.074857]
[1732047186455,8e-07,93512.0,93511.0,0.0777333]
[1732047186933,0.0193298,93520.0,93511.0,0.0777333]
[1732047187152,0.10906255,93519.0,93511.0,0.074857]
[1732047187585,0.023,93524.0,93515.0,0.074853]
[1732047187799,0.10906255,93522.0,93515.0,0.074853]
[1732047188024,0.10906255,93522.0,93517.0,0.074851]
[1732047188239,0.0440469,93524.0,93517.0,0.074851]
[1732047188688,0.0440469,93524.0,93502.0,0.074864]
[1732047188689,7e-05,93525.0,93524.0,0.074847]
[1732047189119,7e-05,93525.0,93524.0,0.0777233]
[1732047189750,7e-05,93525.0,93524.0,0.0028763]
[1732047189988,7e-05,93525.0,93524.0,0.074847]
[1732047190198,7e-05,93525.0,93524.0,0.0028763]
[1732047190407,7e-05,93525.0,93524.0,0.0777233]
[1732047190615,7e-05,93525.0,93524.0,0.074847]
[1732047190842,7e-05,93525.0,93524.0,0.07754295]
[1732047193241,7e-05,93525.0,93524.0,0.15404295]
[1732047194301,7e-05,93525.0,93524.0,0.00269595]
[1732047194723,7e-05,93525.0,93524.0,0.085539]
[1732047194931,7e-05,93525.0,93524.0,0.00263616]
[1732047195147,0.23252727,93525.0,93511.0,0.085551]
[1732047195354,0.23252727,93525.0,93495.0,0.0467]
[1732047195355,0.0758,93520.0,93495.0,0.0467]
[1732047195563,0.0758,93520.0,93496.0,0.00265448]
[1732047195780,0.106936,93514.0,93507.0,0.085554]
[1732047195988,0.213862,93518.0,93510.0,0.085552]
[1732047195989,0.106933,93516.0,93510.0,0.085552]
[1732047196408,0.106933,93516.0,93511.0,0.00263937]
[1732047196617,0.0008554,93514.0,93511.0,0.00263937]
[1732047197052,0.1077904,93514.0,93511.0,0.00263937]
[1732047197251,0.106937,93513.0,93511.0,0.00263937]
[1732047197455,0.0008554,93514.0,93511.0,0.00263937]
[1732047197686,0.0008554,93514.0,93507.0,0.085555]
[1732047197889,0.0008554,93514.0,93512.0,0.00263773]
[1732047198095,0.0008554,93514.0,93511.0,0.085551]
[1732047198329,0.0008554,93514.0,93513.0,0.00263693]
[1732047198528,0.0008554,93514.0,93512.0,0.00263773]
[1732047198735,0.0008554,93514.0,93513.0,0.00263693]
[1732047198960,0.0008554,93514.0,93498.0,0.085562]
[1732047199168,0.0008554,93514.0,93499.0,0.085562]
[1732047199169,0.106947,93504.0,93499.0,0.085562]
[1732047199381,0.106952,93500.0,93495.0,0.085565]
[1732047199599,0.106952,93500.0,93494.0,0.085566]
[1732047199813,0.106952,93500.0,93472.0,0.1257]
[1732047199814,0.106961,93492.0,93486.0,0.085573]
[1732047200021,0.213892,93505.0,93491.0,0.085568]
[1732047200232,0.10906255,93505.0,93490.0,0.085569]
[1732047200433,0.21389,93506.0,93490.0,0.085569]
[1732047200638,0.106955,93497.0,93492.0,0.085568]
[1732047200874,0.106955,93497.0,93493.0,0.085567]
[1732047201081,0.106953,93499.0,93493.0,0.085567]
[1732047201289,0.12339472,93507.0,93491.0,0.085569]
[1732047201290,0.320835,93506.0,93491.0,0.085569]
[1732047201528,0.077,93498.0,93481.0,0.04478658]
[1732047201744,0.106966,93488.0,93482.0,0.085577]
[1732047201960,0.213927,93490.0,93482.0,0.085577]
[1732047202806,0.2139,93502.0,93481.0,0.04478658]
[1732047203023,0.10906255,93501.0,93483.0,0.00271843]
[1732047203226,0.10906255,93501.0,93485.0,0.085574]
[1732047203448,0.106961,93492.0,93486.0,0.085573]
[1732047203671,0.106961,93492.0,93486.0,0.171146]
[1732047203887,0.106963,93490.0,93487.0,0.00271461]
[1732047204104,0.023,93499.0,93487.0,0.00271461]
[1732047204319,0.106959,93494.0,93487.0,0.085573]
[1732047204535,0.106959,93494.0,93481.0,0.04478658]
[1732047204536,0.106963,93491.0,93483.0,0.085576]
[1732047204770,0.106963,93491.0,93484.0,0.08829337]
[1732047204977,0.106963,93491.0,93485.0,0.085575]
[1732047205186,0.106958,93495.0,93486.0,0.00271678]
[1732047205423,0.10906255,93496.0,93488.0,0.085571]
[1732047205633,0.10906255,93496.0,93481.0,0.04478658]
[1732047205634,0.106958,93494.0,93487.0,0.085572]
[1732047205840,0.106958,93494.0,93489.0,0.00271911]
[1732047206066,0.106958,93494.0,93488.0,0.085572]
[1732047206277,0.106958,93494.0,93482.0,0.085577]
[1732047206278,0.106961,93492.0,93490.0,0.00271673]
[1732047206478,0.106959,93494.0,93489.0,0.00271752]
[1732047206695,0.106959,93494.0,93485.0,0.171148]
[1732047206910,0.213917,93494.0,93490.0,0.00271673]
[1732047207123,0.10906255,93493.0,93481.0,0.04478658]
[1732047207399,0.213922,93492.0,93481.0,0.04478658]
[1732047207607,0.106971,93483.0,93482.0,0.00272328]
[1732047207816,0.106971,93483.0,93481.0,0.0017098]
[1732047207817,0.106972,93482.0,93481.0,0.0017098]
[1732047208702,0.213935,93487.0,93481.0,0.00442662]
[1732047208915,0.106972,93483.0,93481.0,0.0017098]
[1732047209581,0.213938,93485.0,93481.0,0.0017098]
[1732047209784,0.213935,93487.0,93481.0,0.0017098]
[1732047209785,0.106972,93482.0,93481.0,0.0017098]
[1732047210409,0.23903455,93482.0,93481.0,0.0017098]
[1732047210848,0.13206255,93482.0,93481.0,0.0017098]
[1732047211047,0.10906255,93482.0,93481.0,0.0017098]
[1732047212092,0.10906255,93482.0,93481.0,0.00442513]
[1732047212294,0.10906255,93482.0,93481.0,0.0017098]
[1732047212500,0.10906255,93482.0,93481.0,0.00442513]
[1732047212703,0.10906255,93482.0,93481.0,0.0017098]
[1732047212704,0.23903455,93482.0,93481.0,0.0017098]
[1732047212914,0.23903455,93482.0,93481.0,0.00442439]
[1732047213120,0.23903455,93482.0,93481.0,0.0017098]
[1732047213584,0.10906255,93482.0,93481.0,0.0017098]
[1732047214008,0.45000938,93489.0,93481.0,0.0017098]
[1732047214223,0.01,93504.0,93481.0,0.0017098]
[1732047214224,0.04429351,93493.0,93492.0,0.085568]
[1732047214447,0.106948,93503.0,93492.0,0.085568]
[1732047214652,0.10906255,93502.0,93492.0,0.08830926]
[1732047214859,0.10695,93501.0,93491.0,0.085569]
[1732047215108,0.10906255,93501.0,93493.0,0.00274763]
[1732047215312,0.05365994,93507.0,93481.0,0.0017098]
[1732047215313,0.106965,93489.0,93481.0,0.0017098]
[1732047215518,0.10906255,93500.0,93481.0,0.0017098]
[1732047215519,0.12339472,93496.0,93481.0,0.0017098]
[1732047215726,0.12339472,93496.0,93482.0,0.00274604]
[1732047215727,0.023,93494.0,93482.0,0.00274604]
[1732047215941,0.023,93494.0,93481.0,0.0017098]
[1732047215942,0.10697,93485.0,93481.0,0.0017098]
[1732047216161,0.12339472,93487.0,93481.0,0.0017098]
[1732047216396,0.106966,93488.0,93481.0,0.0017098]
[1732047216617,0.10906255,93488.0,93481.0,0.0017098]
[1732047216849,0.10906255,93487.0,93481.0,0.0017098]
[1732047217104,0.10697,93484.0,93481.0,0.0017098]
[1732047217581,0.21603455,93483.0,93481.0,0.0017098]
[1732047217832,0.10906255,93483.0,93481.0,0.0017098]
[1732047218066,0.10906255,93483.0,93482.0,0.085577]
[1732047218314,0.04252149,93487.0,93486.0,0.085574]
[1732047218842,0.0983,93494.0,93490.0,0.08557]
[1732047219086,0.10906255,93493.0,93490.0,0.08557]
[1732047219311,0.13206255,93493.0,93492.0,0.085568]
[1732047219716,0.13206255,93493.0,93492.0,0.08830097]
[1732047220479,0.10906255,93493.0,93492.0,0.08830097]
[1732047220868,0.04325485,93494.0,93492.0,0.08830097]
[1732047221070,0.1,93499.0,93498.0,0.085563]
[1732047221304,0.20906255,93499.0,93498.0,0.085563]
[1732047221725,0.20906255,93499.0,93498.0,0.08829374]
[1732047222281,0.1,93499.0,93498.0,0.08829374]
[1732047223198,0.01,93510.0,93498.0,0.08829374]
[1732047223199,0.2748734,93514.0,93507.0,0.085554]
[1732047223455,0.2748734,93514.0,93513.0,0.085549]
[1732047223867,0.2748734,93514.0,93513.0,0.08824126]
[1732047224487,0.2748734,93514.0,93513.0,0.08786253]
[1732047229844,0.2748734,93514.0,93513.0,0.27532508]
[1732047230230,0.2748734,93514.0,93513.0,0.28532508]
[1732047231139,0.2534864,93514.0,93513.0,0.28732508]
[1732047231369,0.2534864,93514.0,93513.0,0.28532508]
[1732047231370,0.1893254,93514.0,93513.0,0.28532508]
[1732047232046,0.1013254,93514.0,93513.0,0.28532508]
[1732047232985,0.1013254,93514.0,93513.0,0.1452029]
[1732047233211,0.1013254,93514.0,93513.0,0.23328398]
[1732047233461,0.1021805,93514.0,93513.0,0.11422143]
[1732047234877,0.1022205,93514.0,93513.0,0.11422143]
[1732047235332,0.1022205,93514.0,93513.0,0.08979128]
[1732047235554,0.1122205,93514.0,93513.0,0.08979128]
[1732047237649,0.1122205,93514.0,93513.0,0.20885383]
[1732047237916,0.1122205,93514.0,93513.0,0.19885383]
[1732047238148,0.1122205,93514.0,93513.0,0.08979128]
[1732047238612,0.1122205,93514.0,93513.0,0.20885383]
[1732047240029,0.1122205,93514.0,93513.0,0.08979128]
[1732047246988,0.0242205,93514.0,93513.0,0.08979128]
[1732047248186,0.06753734,93514.0,93513.0,0.08979128]
[1732047248712,0.13328305,93514.0,93513.0,0.00424228]
[1732047248937,0.21538305,93514.0,93513.0,0.00424228]
[1732047249165,0.21538305,93514.0,93513.0,0.0017102]
[1732047249621,0.25818819,93514.0,93513.0,0.00423568]
[1732047250079,0.25818819,93514.0,93513.0,0.0765652]
[1732047250322,0.25818819,93514.0,93513.0,0.00423642]
[1732047251009,0.25818819,93514.0,93513.0,0.0017102]
[1732047251234,0.0242205,93514.0,93513.0,0.0765652]
[1732047251774,0.0242205,93514.0,93513.0,0.07909352]
[1732047252437,0.0242205,93514.0,93513.0,0.00423852]
[1732047252438,0.37861805,93514.0,93513.0,0.00423852]
[1732047252705,0.40161805,93514.0,93513.0,0.00423852]
[1732047252947,0.40161805,93514.0,93513.0,0.0017102]
[1732047253202,0.39161805,93514.0,93513.0,0.0017102]
[1732047253424,0.36861805,93514.0,93513.0,0.0017102]
[1732047254596,0.41143565,93514.0,93513.0,0.0017102]
[1732047256953,0.30450065,93514.0,93513.0,0.0017102]
[1732047257182,0.0242205,93514.0,93513.0,0.0765652]
[1732047257658,0.0242205,93514.0,93513.0,0.07923937]
[1732047259535,0.0242205,93514.0,93513.0,0.20433937]
[1732047259710,0.0242205,93514.0,93513.0,0.30433937]
[1732047260181,0.0242205,93514.0,93513.0,0.34842397]
[1732047260618,0.0242205,93514.0,93513.0,0.30433937]
[1732047262010,0.09042671,93542.0,93533.0,0.074839]
[1732047262254,0.10906255,93538.0,93533.0,0.074839]
[1732047262495,0.10906255,93538.0,93531.0,0.07484]
[1732047262947,0.10906255,93538.0,93531.0,0.149681]
[1732047263401,0.10906255,93538.0,93532.0,0.00264616]
[1732047263865,0.10906255,93538.0,93533.0,0.149678]
[1732047264115,0.10906255,93538.0,93535.0,0.074838]
[1732047264337,0.10906255,93538.0,93534.0,0.07748375]
[1732047264582,0.10906255,93538.0,93536.0,0.00264401]
[1732047264805,0.10906255,93538.0,93535.0,0.07748288]
[1732047265030,0.10906255,93538.0,93537.0,0.00264315]
[1732047265250,0.10906255,93538.0,93536.0,0.00264482]
[1732047265479,0.10906255,93538.0,93535.0,0.074838]
[1732047265706,0.10906255,93538.0,93537.0,0.00264477]
[1732047265923,0.10906255,93538.0,93536.0,0.00264563]
[1732047266146,0.10906255,93538.0,93537.0,0.00264644]
[1732047266361,0.10906255,93538.0,93534.0,0.074838]
[1732047266857,0.10906255,93538.0,93497.0,0.24315628]
[1732047266858,0.10691,93537.0,93535.0,0.00264817]
[1732047267087,0.10906255,93536.0,93535.0,0.00264817]
[1732047267316,0.10906255,93536.0,93529.0,0.074843]
[1732047267551,0.10906255,93536.0,93518.0,0.074851]
[1732047267777,0.10906255,93536.0,93530.0,0.00264672]
[1732047267778,0.332716,93531.0,93530.0,0.00264672]
[1732047268221,0.106931,93518.0,93513.0,0.1017102]
[1732047268532,0.0828,93517.0,93513.0,0.1017102]
[1732047268622,0.129935,93514.0,93513.0,0.1017102]
[1732047268846,0.23899755,93514.0,93513.0,0.1017102]
[1732047269069,0.10906255,93514.0,93513.0,0.1017102]
[1732047269309,0.10906255,93514.0,93513.0,0.1765652]
[1732047270445,0.04423184,93516.0,93515.0,0.074854]
[1732047270674,0.15329439,93516.0,93515.0,0.074854]
[1732047270906,0.10906255,93516.0,93515.0,0.074854]
[1732047274581,0.10906255,93516.0,93513.0,0.1017102]
[1732047274812,0.10906255,93515.0,93513.0,0.1017102]
[1732047275094,0.10906255,93515.0,93514.0,0.074855]
[1732047275333,0.10906255,93515.0,93513.0,0.1017102]
[1732047276262,0.10906255,93515.0,93513.0,0.1765652]
[1732047276912,0.02106255,93515.0,93513.0,0.1017102]
[1732047277129,0.02106255,93515.0,93514.0,0.074855]
[1732047278006,0.02106255,93515.0,93514.0,0.07752255]
[1732047278466,0.45000938,93529.0,93528.0,0.074843]
[1732047279148,0.45000938,93529.0,93528.0,0.07750348]
[1732047280246,0.078,93536.0,93528.0,0.07750348]
[1732047280247,0.078,93536.0,93532.0,0.07484]
[1732047280466,0.01989454,93535.0,93533.0,0.00265898]
[1732047280684,0.18706255,93536.0,93532.0,0.07484]
[1732047280685,0.01989423,93534.0,93532.0,0.07484]
[1732047280896,0.22956394,93536.0,93532.0,0.07484]
[1732047280897,0.22956394,93536.0,93534.0,0.074838]
[1732047281117,0.01989597,93535.0,93534.0,0.074838]
[1732047287639,0.0008551,93538.0,93537.0,0.074836]
[1732047288286,0.10991765,93538.0,93514.0,0.0767]
[1732047288499,0.18686255,93537.0,93534.0,0.074838]
[1732047288930,0.18686255,93537.0,93514.0,0.0767]
[1732047289353,0.18686255,93537.0,93532.0,0.07484]
[1732047289490,0.18686255,93537.0,93533.0,0.074839]
[1732047289714,0.18686255,93537.0,93534.0,0.074838]
[1732047290141,0.18686255,93537.0,93535.0,0.00263748]
[1732047290584,0.18686255,93537.0,93534.0,0.074839]
[1732047290988,0.18686255,93537.0,93535.0,0.00263748]
[1732047291456,0.13991,93536.0,93535.0,0.00263748]
[1732047291661,0.13991,93536.0,93514.0,0.0002]
[1732047291662,0.023,93529.0,93514.0,0.0002]
[1732047291879,0.106924,93524.0,93517.0,0.074852]
[1732047292080,0.10906255,93523.0,93516.0,0.00264509]
[1732047292224,0.10906255,93523.0,93522.0,0.074848]
[1732047292652,0.01,93531.0,93528.0,0.074843]
[1732047293009,0.01,93531.0,93529.0,0.00263555]
[1732047293010,0.10906255,93530.0,93529.0,0.00263555]
[1732047293220,0.21597955,93530.0,93529.0,0.00263555]
[1732047293431,0.21597955,93530.0,93514.0,0.0002]
[1732047293432,0.21597955,93530.0,93524.0,0.074846]
[1732047293849,0.10906255,93530.0,93525.0,0.074846]
[1732047294049,0.10906255,93530.0,93514.0,0.0002]
[1732047294305,0.10906255,93530.0,93526.0,0.00263901]
[1732047294507,0.10906255,93530.0,93525.0,0.074845]
[1732047294893,0.10906255,93530.0,93516.0,0.074853]
[1732047295097,0.10906255,93530.0,93525.0,0.074846]
[1732047295882,0.10906255,93530.0,93514.0,0.0002]
[1732047296080,0.10906255,93530.0,93519.0,0.07485]
[1732047296081,0.236837,93529.0,93519.0,0.07485]
[1732047296286,0.106925,93524.0,93519.0,0.07485]
[1732047296485,0.10906255,93523.0,93514.0,0.0002]
[1732047296658,0.075,93520.0,93516.0,0.074852]
[1732047296861,0.10906255,93519.0,93514.0,0.0002]
[1732047297251,0.213863,93518.0,93514.0,0.0002]
[1732047297434,0.106933,93516.0,93514.0,0.0002]
[1732047297640,0.21599555,93516.0,93514.0,0.0002]
[1732047297853,0.23899555,93516.0,93514.0,0.0002]
[1732047299988,0.24899555,93516.0,93514.0,0.0002]
[1732047300202,0.25099555,93516.0,93514.0,0.0002]
[1732047300875,0.77400493,93516.0,93515.0,0.0017098]
[1732047301116,0.66707193,93516.0,93515.0,0.0017098]
[1732047301331,0.65707193,93516.0,93515.0,0.0017098]
[1732047301537,0.65707193,93516.0,93515.0,0.1017098]
[1732047301538,0.66707193,93516.0,93515.0,0.1017098]
[1732047301749,0.77400493,93516.0,93515.0,0.1017098]
[1732047303001,0.66707193,93516.0,93515.0,0.1017098]
[1732047303422,0.77400493,93516.0,93515.0,0.1017098]
[1732047304711,0.32399555,93516.0,93515.0,0.1017098]
[1732047305374,0.33399555,93516.0,93515.0,0.0995098]
[1732047305608,0.35389512,93516.0,93515.0,0.0995098]
[1732047305862,0.45589512,93516.0,93515.0,0.0995098]
[1732047306067,0.9995178,93516.0,93515.0,0.0995098]
[1732047306275,0.9059045,93516.0,93515.0,0.0995098]
[1732047306706,1.00141544,93516.0,93515.0,0.0995098]
[1732047306921,0.8179045,93516.0,93515.0,0.0995098]
[1732047307388,1.11269417,93516.0,93515.0,0.0995098]
[1732047307607,1.15403685,93516.0,93515.0,0.0995098]
[1732047307820,1.19749052,93516.0,93515.0,0.0995098]
[1732047308238,1.23062824,93516.0,93515.0,0.0995098]
[1732047308454,1.11469417,93516.0,93515.0,0.0995098]
[1732047308663,1.09480493,93516.0,93515.0,0.0995098]
[1732047308872,1.28565366,93516.0,93515.0,0.0995098]
[1732047309096,1.09480493,93516.0,93515.0,0.0995098]
[1732047309509,1.15449011,93516.0,93515.0,0.0995098]
[1732047309971,1.06980493,93516.0,93515.0,0.0995098]
[1732047310185,1.16521919,93516.0,93515.0,0.0995098]
[1732047310396,0.81980493,93516.0,93515.0,0.0995098]
[1732047310819,0.80980493,93516.0,93515.0,0.0995098]
[1732047311032,0.77300493,93516.0,93515.0,0.0995098]
[1732047311252,0.116935,93514.0,93513.0,0.00997422]
[1732047311461,0.35899755,93514.0,93513.0,0.00997422]
[1732047312078,0.40549755,93514.0,93513.0,0.00997422]
[1732047312523,0.023,93494.0,93490.0,0.0017102]
[1732047312703,0.21602255,93493.0,93490.0,0.0017102]
[1732047312915,0.129961,93492.0,93491.0,0.0026899]
[1732047313136,0.129961,93492.0,93490.0,0.0017102]
[1732047313137,0.13206255,93492.0,93490.0,0.0017102]
[1732047313349,0.30870973,93491.0,93490.0,0.0017102]
[1732047313612,0.30870973,93491.0,93481.0,0.0017098]
[1732047313613,0.116972,93482.0,93481.0,0.0017098]
[1732047313837,0.37242927,93482.0,93481.0,0.0017098]
[1732047314043,0.38242927,93482.0,93481.0,0.0017098]
[1732047315349,0.26545727,93482.0,93481.0,0.0017098]
[1732047315560,0.34942927,93482.0,93481.0,0.0017098]
[1732047315771,0.53689566,93482.0,93481.0,0.0017098]
[1732047315984,1.03500504,93482.0,93481.0,0.0017098]
[1732047316194,1.20442465,93482.0,93481.0,0.0017098]
[1732047316648,1.25398427,93482.0,93481.0,0.0017098]
[1732047316850,1.17881788,93482.0,93481.0,0.0017098]
[1732047317076,1.05983865,93482.0,93481.0,0.0017098]
[1732047317287,1.28629061,93482.0,93481.0,0.0017098]
[1732047317706,1.11479589,93482.0,93481.0,0.0017098]
[1732047318364,0.69904393,93482.0,93481.0,0.0017098]
[1732047319815,0.24903455,93482.0,93481.0,0.0017098]
[1732047320687,0.18501885,93482.0,93481.0,0.0017098]
[1732047320895,0.17501885,93482.0,93481.0,0.0765908]
[1732047321135,0.15201885,93482.0,93481.0,0.0765908]
[1732047321348,0.17501885,93482.0,93481.0,0.07933911]
[1732047321982,0.0659563,93482.0,93481.0,0.07933911]
[1732047322196,0.0429563,93482.0,93481.0,0.00445811]
[1732047322417,0.45602708,93482.0,93481.0,0.00445811]
[1732047322624,0.37242927,93482.0,93481.0,0.00445811]
[1732047322842,0.37242927,93482.0,93481.0,0.0017098]
[1732047323258,0.24903455,93482.0,93481.0,0.0017098]
[1732047323463,0.023,93482.0,93481.0,0.0017098]
[1732047323672,0.01,93485.0,93481.0,0.0017098]
[1732047323903,0.24903455,93482.0,93481.0,0.0017098]
[1732047324115,0.34903455,93482.0,93481.0,0.0017098]
[1732047325020,0.35903455,93482.0,93481.0,0.0017098]
[1732047325230,0.34903455,93482.0,93481.0,0.0017098]
[1732047325653,0.43693455,93482.0,93481.0,0.0017098]
[1732047325862,1.01033865,93482.0,93481.0,0.0017098]
[1732047326754,1.00033865,93482.0,93481.0,0.0017098]
[1732047327183,1.01033865,93482.0,93481.0,0.0017098]
[1732047327412,1.05364965,93482.0,93481.0,0.0017098]
[1732047328161,1.05564965,93482.0,93481.0,0.0017098]
[1732047328373,1.12662934,93482.0,93481.0,0.0017098]
[1732047328827,1.12462934,93482.0,93481.0,0.0017098]
[1732047329487,0.213999,93458.0,93439.0,0.074914]
[1732047329711,0.023,93452.0,93443.0,0.074911]
[1732047329955,0.023,93452.0,93443.0,0.149822]
[1732047330161,0.023,93452.0,93447.0,0.00276352]
[1732047330599,0.023,93452.0,93446.0,0.0757641]
[1732047330823,0.12339472,93453.0,93448.0,0.00276875]
[1732047331039,0.12339472,93453.0,93447.0,0.00276962]
[1732047331040,0.140011,93448.0,93447.0,0.00276962]
[1732047331257,0.140011,93448.0,93446.0,0.0008551]
[1732047331258,0.117012,93447.0,93446.0,0.0008551]
[1732047331490,0.04286515,93457.0,93446.0,0.0008551]
[1732047331712,0.01,93478.0,93466.0,0.074893]
[1732047331966,0.45000938,93481.0,93466.0,0.198393]
[1732047332180,0.04283477,93474.0,93466.0,0.20117809]
[1732047332429,0.04283477,93474.0,93466.0,0.12628509]
[1732047332676,0.45000938,93481.0,93466.0,0.00278509]
[1732047332677,0.10906255,93467.0,93466.0,0.00278509]
[1732047333109,0.10906255,93467.0,93446.0,0.0784551]
[1732047333110,0.10906255,93467.0,93447.0,0.074908]
[1732047333369,0.0458,93464.0,93446.0,0.0008551]
[1732047333573,0.207012,93447.0,93446.0,0.0008551]
[1732047333786,0.33907455,93447.0,93446.0,0.0008551]
[1732047334446,0.34907455,93447.0,93446.0,0.0008551]
[1732047335559,0.44127455,93447.0,93446.0,0.0008551]
[1732047336227,0.48438007,93447.0,93446.0,0.0008551]
[1732047336472,0.55535976,93447.0,93446.0,0.0008551]
[1732047336677,0.48438007,93447.0,93446.0,0.0008551]
[1732047336882,0.39638007,93447.0,93446.0,0.0008551]
[1732047337099,0.83438945,93447.0,93446.0,0.0008551]
[1732047337317,0.95116914,93447.0,93446.0,0.0008551]
[1732047338694,0.95116914,93447.0,93430.0,0.0008553]
[1732047338695,0.11703,93431.0,93430.0,0.0008553]
[1732047338879,0.60947781,93431.0,93430.0,0.0008553]
[1732047339168,0.6804575,93431.0,93430.0,0.0008553]
[1732047339425,0.6904575,93431.0,93430.0,0.0008553]
[1732047340323,0.6804575,93431.0,93430.0,0.0008553]
[1732047340541,0.1,93431.0,93430.0,0.0008553]
[1732047340768,0.123,93435.0,93430.0,0.0008553]
[1732047341009,0.1,93433.0,93430.0,0.00340197]
[1732047341232,0.20906255,93433.0,93430.0,0.0008547]
[1732047341454,0.023,93439.0,93431.0,0.074921]
[1732047341702,0.13206255,93438.0,93431.0,0.074921]
[1732047341936,0.13206255,93438.0,93432.0,0.00259009]
[1732047342405,0.107024,93437.0,93430.0,0.0008547]
[1732047342628,0.10906255,93436.0,93430.0,0.0008547]
[1732047343777,0.10906255,93436.0,93418.0,0.074932]
[1732047344023,0.10906255,93436.0,93429.0,0.074923]
[1732047344232,0.10906255,93436.0,93427.0,0.074924]
[1732047344659,0.21608855,93436.0,93425.0,0.074926]
[1732047344872,0.21608855,93436.0,93426.0,0.074925]
[1732047345091,0.10906255,93436.0,93422.0,0.074928]
[1732047345359,0.10906255,93436.0,93402.0,0.12930576]
[1732047345577,0.10906255,93436.0,93423.0,0.07752312]
[1732047345782,0.10906255,93436.0,93402.0,0.11930576]
[1732047346020,0.10906255,93436.0,93427.0,0.074924]
[1732047346238,0.10906255,93436.0,93425.0,0.074925]
[1732047346461,0.107026,93435.0,93426.0,0.074925]
[1732047346687,0.107028,93434.0,93424.0,0.074926]
[1732047347178,0.10906255,93436.0,93425.0,0.00262201]
[1732047347425,0.21608755,93436.0,93427.0,0.074924]
[1732047347643,0.023,93435.0,93402.0,0.074944]
[1732047347863,0.107029,93433.0,93423.0,0.074927]
[1732047348101,0.107029,93433.0,93413.0,0.074936]
[1732047348102,0.10906255,93434.0,93413.0,0.074936]
[1732047348316,0.10906255,93434.0,93424.0,0.00182661]
[1732047348568,0.10906255,93434.0,93423.0,0.0008552]
[1732047348777,0.10906255,93434.0,93425.0,0.07750469]
[1732047349022,0.10906255,93434.0,93424.0,0.07750656]
[1732047349237,0.10906255,93434.0,93426.0,0.00257883]
[1732047349458,0.10906255,93434.0,93425.0,0.00257969]
[1732047349685,0.10906255,93434.0,93423.0,0.0008552]
[1732047349686,0.21608955,93434.0,93423.0,0.0757822]
[1732047350165,0.10906255,93434.0,93424.0,0.0775069]
[1732047350415,0.10906255,93434.0,93424.0,0.074926]
[1732047350628,0.10906255,93434.0,93425.0,0.00258003]
[1732047350843,0.10906255,93434.0,93423.0,0.0008552]
[1732047350844,0.107029,93433.0,93423.0,0.0008552]
[1732047351282,0.21608955,93434.0,93423.0,0.0757832]
[1732047351480,0.21608955,93434.0,93423.0,0.0008552]
[1732047351481,0.10906255,93434.0,93423.0,0.0008552]
[1732047352005,0.023,93430.0,93423.0,0.0008552]
[1732047352247,0.023,93428.0,93423.0,0.0008552]
[1732047352483,0.21609755,93427.0,93423.0,0.0008552]
[1732047352738,0.214056,93434.0,93423.0,0.0008552]
[1732047352739,0.45000938,93439.0,93425.0,0.074925]
[1732047352965,0.23908555,93438.0,93428.0,0.074923]
[1732047353223,0.23908555,93438.0,93427.0,0.074924]